fUST/lending_fUST_20250203
["ID","MTS","AMOUNT","RATE_DAILY","PERIOD"]
[351427521,1738569033460,-500.0,0.00016438,2]
[351427523,1738569033470,-500.0,0.00016438,2]
[351427525,1738569033480,-160.0,0.00016438,2]
[351427527,1738569033490,-500.0,0.00016438,2]
[351427529,1738569033500,-500.0,0.00016438,2]
[351427531,1738569033511,-500.0,0.00016438,2]
[351427533,1738569033521,-500.0,0.00016438,2]
[351427535,1738569033531,-506.45,0.00016438,2]
[351427537,1738569033541,-500.0,0.00016438,2]
[351427539,1738569033552,-500.0,0.00016438,2]
[351427541,1738569033569,-500.0,0.00016438,2]
[351427543,1738569033579,-500.0,0.00016438,2]
[351427545,1738569033590,-500.0,0.00016438,2]
[351427547,1738569033600,-194.46,0.00016438,2]
[351427549,1738569033611,-500.0,0.00016438,2]
[351427551,1738569033621,-500.0,0.00016438,2]
[351427553,1738569033632,-500.0,0.00016438,2]
[351427555,1738569033642,-500.0,0.00016438,2]
[351427557,1738569033652,-500.0,0.00016438,2]
[351427559,1738569033662,-500.0,0.00016438,2]
[351427562,1738569033672,-500.0,0.00016438,2]
[351427563,1738569033682,-500.0,0.00016438,2]
[351427566,1738569033693,-480.0291471,0.00016438,2]
[351427568,1738569033703,-500.0,0.00016438,2]
[351427569,1738569033712,-500.0,0.00016438,2]
[351427571,1738569033721,-500.0,0.00016438,2]
[351427573,1738569033731,-500.0,0.00016438,2]
[351427575,1738569033741,-500.0,0.00016438,2]
[351427578,1738569033752,-500.0,0.00016438,2]
[351427579,1738569033762,-500.0,0.00016438,2]
[351427581,1738569033772,-500.0,0.00016438,2]
[351427583,1738569033782,-500.0,0.00016438,2]
[351427584,1738569033793,-500.0,0.00016438,2]
[351427585,1738569033803,-500.0,0.00016438,2]
[351427587,1738569033816,-500.0,0.00016438,2]
[351427588,1738569033825,-500.0,0.00016438,2]
[351427589,1738569033835,-500.0,0.00016438,2]
[351427590,1738569033845,-500.0,0.00016438,2]
[351427591,1738569033855,-516.87651909,0.00016438,2]
[351427592,1738569033865,-500.0,0.00016438,2]
[351427593,1738569033874,-201.59980704,0.00016438,2]
[351427594,1738569033885,-500.0,0.00016438,2]
[351427595,1738569033895,-500.0,0.00016438,2]
[351427596,1738569033905,-500.0,0.00016438,2]
[351427597,1738569033915,-500.0,0.00016438,2]
[351427598,1738569033926,-500.0,0.00016438,2]
[351427599,1738569033936,-500.0,0.00016438,2]
[351427600,1738569033946,-500.0,0.00016438,2]
[351427601,1738569033956,-500.0,0.00016438,2]
[351427602,1738569033966,-496.66118993,0.00016438,2]
[351427603,1738569033976,-501.41700292,0.00016438,2]
[351427604,1738569033986,-500.0,0.00016438,2]
[351427605,1738569033996,-500.0,0.00016438,2]
[351427606,1738569034006,-500.0,0.00016438,2]
[351427607,1738569034016,-544.65,0.00016438,2]
[351427608,1738569034026,-500.0,0.00016438,2]
[351427609,1738569034036,-500.0,0.00016438,2]
[351427610,1738569034046,-500.0,0.00016438,2]
[351427611,1738569034058,-610.0,0.00016438,2]
[351427612,1738569034068,-500.0,0.00016438,2]
[351427613,1738569034077,-590.92,0.00016438,2]
[351427614,1738569034087,-500.0,0.00016438,2]
[351427615,1738569034096,-500.0,0.00016438,2]
[351427616,1738569034106,-500.0,0.00016438,2]
[351427617,1738569034115,-500.0,0.00016438,2]
[351427618,1738569034125,-500.0,0.00016438,2]
[351427619,1738569034134,-500.0,0.00016438,2]
[351427620,1738569034144,-249.65776304,0.00016438,2]
[351427621,1738569034153,-167.06978871,0.00016438,2]
[351427622,1738569034164,-500.0,0.00016438,2]
[351427623,1738569034174,-500.0,0.00016438,2]
[351427624,1738569034183,-501.02060968,0.00016438,2]
[351427625,1738569034193,-426.19038534,0.00016438,2]
[351427626,1738569034203,-500.0,0.00016438,2]
[351427627,1738569034213,-500.0,0.00016438,2]
[351427628,1738569034222,-510.62378845,0.00016438,2]
[351427629,1738569034232,-500.0,0.00016438,2]
[351427630,1738569034242,-500.0,0.00016438,2]
[351427631,1738569034251,-500.0,0.00016438,2]
[351427632,1738569034260,-1094.05,0.00016438,2]
[351427633,1738569034270,-500.0,0.00016438,2]
[351427634,1738569034279,-240.27256463,0.00016438,2]
[351427635,1738569034289,-500.0,0.00016438,2]
[351427636,1738569034303,-500.0,0.00016438,2]
[351427637,1738569034316,-500.0,0.00016438,2]
[351427638,1738569034325,-500.0,0.00016438,2]
[351427639,1738569034334,-500.0,0.00016438,2]
[351427640,1738569034345,-500.0,0.00016438,2]
[351427641,1738569034355,-502.35164064,0.00016438,2]
[351427642,1738569034365,-500.0,0.00016438,2]
[351427643,1738569034375,-500.0,0.00016438,2]
[351427644,1738569034385,-500.0,0.00016438,2]
[351427645,1738569034395,-500.0,0.00016438,2]
[351427646,1738569034406,-500.0,0.00016438,2]
[351427647,1738569034415,-500.0,0.00016438,2]
[351427648,1738569034424,-500.0,0.00016438,2]
[351427649,1738569034433,-668.22,0.00016438,2]
[351427650,1738569034442,-500.0,0.00016438,2]
[351427651,1738569034451,-500.0,0.00016438,2]
[351427652,1738569034461,-500.0,0.00016438,2]
[351427653,1738569034471,-28137.66,0.00016438,2]
[351427654,1738569034481,-500.0,0.00016438,2]
[351427655,1738569034491,-500.0,0.00016438,2]
[351427656,1738569034501,-1006.67,0.00016438,2]
[351427657,1738569034510,-500.0,0.00016438,2]
[351427658,1738569034520,-678.75,0.00016438,2]
[351427659,1738569034529,-1781.93,0.00016438,2]
[351427660,1738569034539,-500.0,0.00016438,2]
[351427661,1738569034548,-500.0,0.00016438,2]
[351427662,1738569034560,-500.0,0.00016438,2]
[351427663,1738569034570,-500.0,0.00016438,2]
[351427664,1738569034579,-588.73,0.00016438,2]
[351427665,1738569034588,-501.79949066,0.00016438,2]
[351427666,1738569034598,-500.0,0.00016438,2]
[351427667,1738569034607,-595.04977387,0.00016438,2]
[351427668,1738569034617,-6374.87,0.00016438,2]
[351427669,1738569034627,-218.77430758,0.00016438,2]
[351427670,1738569034636,-500.0,0.00016438,2]
[351427671,1738569034646,-500.0,0.00016438,2]
[351427672,1738569034656,-500.0,0.00016438,2]
[351427673,1738569034667,-500.0,0.00016438,2]
[351427674,1738569034677,-211.41067125,0.00016438,2]
[351427675,1738569034687,-500.0,0.00016438,2]
[351427676,1738569034697,-398.43,0.00016438,2]
[351427677,1738569034706,-501.64832544,0.00016438,2]
[351427678,1738569034715,-500.0,0.00016438,2]
[351427679,1738569034725,-500.0,0.00016438,2]
[351427680,1738569034735,-500.0,0.00016438,2]
[351427681,1738569034745,-500.0,0.00016438,2]
[351427682,1738569034755,-500.0,0.00016438,2]
[351427683,1738569034764,-500.0,0.00016438,2]
[351427684,1738569034774,-500.0,0.00016438,2]
[351427685,1738569034784,-500.0,0.00016438,2]
[351427686,1738569034793,-500.0,0.00016438,2]
[351427687,1738569034805,-516.51294411,0.00016438,2]
[351427688,1738569034815,-500.0,0.00016438,2]
[351427689,1738569034824,-500.0,0.00016438,2]
[351427690,1738569034834,-500.0,0.00016438,2]
[351427691,1738569034844,-500.0,0.00016438,2]
[351427692,1738569034853,-500.0,0.00016438,2]
[351427693,1738569034864,-500.0,0.00016438,2]
[351427694,1738569034874,-500.0,0.00016438,2]
[351427695,1738569034883,-500.0,0.00016438,2]
[351427696,1738569034893,-500.0,0.00016438,2]
[351427697,1738569034903,-750.4,0.00016438,2]
[351427698,1738569034913,-1806.56,0.00016438,2]
[351427699,1738569034922,-1452.39,0.00016438,2]
[351427700,1738569034932,-502.46643128,0.00016438,2]
[351427701,1738569034942,-500.0,0.00016438,2]
[351427702,1738569034951,-500.0,0.00016438,2]
[351427703,1738569034961,-500.0,0.00016438,2]
[351427704,1738569034970,-510.11911414,0.00016438,2]
[351427705,1738569034981,-518.88657333,0.00016438,2]
[351427706,1738569034991,-500.0,0.00016438,2]
[351427707,1738569035002,-500.0,0.00016438,2]
[351427708,1738569035013,-500.0,0.00016438,2]
[351427709,1738569035022,-500.0,0.00016438,2]
[351427710,1738569035033,-500.0,0.00016438,2]
[351427711,1738569035043,-500.0,0.00016438,2]
[351427712,1738569035053,-660.47,0.00016438,2]
[351427713,1738569035067,-500.0,0.00016438,2]
[351427714,1738569035077,-233.88722473,0.00016438,2]
[351427715,1738569035086,-500.0,0.00016438,2]
[351427716,1738569035096,-503.72251811,0.00016438,2]
[351427717,1738569035106,-189.4280903,0.00016438,2]
[351427718,1738569035116,-500.0,0.00016438,2]
[351427719,1738569035125,-555.86,0.00016438,2]
[351427720,1738569035135,-500.0,0.00016438,2]
[351427721,1738569035144,-500.0,0.00016438,2]
[351427722,1738569035153,-500.0,0.00016438,2]
[351427723,1738569035162,-500.0,0.00016438,2]
[351427724,1738569035172,-500.0,0.00016438,2]
[351427725,1738569035181,-500.0,0.00016438,2]
[351427726,1738569035191,-691.33,0.00016438,2]
[351427727,1738569035200,-500.0,0.00016438,2]
[351427728,1738569035210,-500.0,0.00016438,2]
[351427729,1738569035219,-500.0,0.00016438,2]
[351427730,1738569035228,-500.0,0.00016438,2]
[351427731,1738569035238,-500.0,0.00016438,2]
[351427732,1738569035248,-500.0,0.00016438,2]
[351427733,1738569035257,-514.27816914,0.00016438,2]
[351427734,1738569035268,-500.0,0.00016438,2]
[351427735,1738569035278,-500.0,0.00016438,2]
[351427736,1738569035287,-500.0,0.00016438,2]
[351427737,1738569035299,-500.0,0.00016438,2]
[351427738,1738569035313,-500.0,0.00016438,2]
[351427739,1738569035322,-500.7259514,0.00016438,2]
[351427740,1738569035332,-500.0,0.00016438,2]
[351427741,1738569035343,-508.46389405,0.00016438,2]
[351427742,1738569035352,-503.31744372,0.00016438,2]
[351427743,1738569035361,-500.0,0.00016438,2]
[351427744,1738569035371,-500.0,0.00016438,2]
[351427745,1738569035381,-500.0,0.00016438,2]
[351427746,1738569035391,-500.0,0.00016438,2]
[351427747,1738569035400,-500.0,0.00016438,2]
[351427748,1738569035410,-500.0,0.00016438,2]
[351427749,1738569035419,-500.0,0.00016438,2]
[351427750,1738569035429,-503.94368618,0.00016438,2]
[351427751,1738569035438,-500.0,0.00016438,2]
[351427752,1738569035447,-507.43455405,0.00016438,2]
[351427753,1738569035456,-500.0,0.00016438,2]
[351427754,1738569035466,-500.0,0.00016438,2]
[351427755,1738569035475,-500.0,0.00016438,2]
[351427756,1738569035485,-500.0,0.00016438,2]
[351427757,1738569035495,-563.42,0.00016438,2]
[351427758,1738569035505,-500.0,0.00016438,2]
[351427759,1738569035514,-500.0,0.00016438,2]
[351427760,1738569035523,-242.39662894,0.00016438,2]
[351427761,1738569035532,-538.53392417,0.00016438,2]
[351427762,1738569035542,-500.0,0.00016438,2]
[351427763,1738569035552,-500.0,0.00016438,2]
[351427764,1738569035565,-500.0,0.00016438,2]
[351427765,1738569035575,-500.0,0.00016438,2]
[351427766,1738569035585,-500.0,0.00016438,2]
[351427767,1738569035594,-1306.38,0.00016438,2]
[351427768,1738569035604,-1078.75,0.00016438,2]
[351427769,1738569035614,-504.5311288,0.00016438,2]
[351427770,1738569035623,-500.0,0.00016438,2]
[351427771,1738569035633,-500.0,0.00016438,2]
[351427772,1738569035643,-500.0,0.00016438,2]
[351427773,1738569035652,-500.0,0.00016438,2]
[351427774,1738569035662,-500.0,0.00016438,2]
[351427775,1738569035672,-500.0,0.00016438,2]
[351427776,1738569035682,-1000.0,0.00016438,7]
[351427777,1738569035692,-500.0,0.00016438,2]
[351427778,1738569035702,-2929.25,0.00016438,2]
[351427779,1738569035711,-500.0,0.00016438,2]
[351427780,1738569035720,-500.0,0.00016438,2]
[351427781,1738569035731,-588.98,0.00016438,2]
[351427782,1738569035740,-500.0,0.00016438,2]
[351427783,1738569035750,-561.13,0.00016438,2]
[351427784,1738569035760,-500.0,0.00016438,2]
[351427785,1738569035769,-500.0,0.00016438,2]
[351427786,1738569035779,-500.0,0.00016438,2]
[351427787,1738569035788,-505.96861158,0.00016438,2]
[351427788,1738569035798,-500.0,0.00016438,2]
[351427789,1738569035811,-500.0,0.00016438,2]
[351427790,1738569035820,-500.0,0.00016438,2]
[351427791,1738569035830,-500.0,0.00016438,2]
[351427792,1738569035839,-507.57181932,0.00016438,2]
[351427793,1738569035849,-500.0,0.00016438,2]
[351427794,1738569035859,-500.0,0.00016438,2]
[351427795,1738569035869,-500.0,0.00016438,2]
[351427796,1738569035878,-500.0,0.00016438,2]
[351427797,1738569035887,-1368.9,0.00016438,2]
[351427798,1738569035897,-500.0,0.00016438,2]
[351427799,1738569036047,-500.0,0.00016438,2]
[351427800,1738569036060,-500.0,0.00016438,2]
[351427801,1738569036069,-500.0,0.00016438,2]
[351427802,1738569036079,-500.0,0.00016438,2]
[351427803,1738569036088,-500.0,0.00016438,2]
[351427804,1738569036097,-4326.37,0.00016438,2]
[351427805,1738569036107,-500.0,0.00016438,2]
[351427806,1738569036116,-500.0,0.00016438,2]
[351427807,1738569036125,-500.0,0.00016438,2]
[351427808,1738569036135,-500.0,0.00016438,2]
[351427809,1738569036144,-550.39548246,0.00016438,2]
[351427810,1738569036153,-500.0,0.00016438,2]
[351427811,1738569036163,-500.0,0.00016438,2]
[351427812,1738569036172,-500.0,0.00016438,2]
[351427813,1738569036182,-788.3,0.00016438,2]
[351427814,1738569036191,-503.06625782,0.00016473,2]
[351427815,1738569036201,-500.0,0.00016473,2]
[351427816,1738569036210,-500.0,0.00016473,2]
[351427817,1738569036219,-539.75247655,0.00016473,2]
[351427818,1738569036229,-500.0,0.00016473,2]
[351427819,1738569036238,-37061.38285816,0.00016475,2]
[351427820,1738569036248,-151.0,0.000165,2]
[351427821,1738569036257,-313.2340431,0.000165,2]
[351427822,1738569036267,-215.6590378,0.000165,2]
[351427823,1738569036276,-306.0,0.000165,2]
[351427824,1738569036285,-215.6590378,0.000165,2]
[351427825,1738569036295,-215.6590378,0.000165,2]
[351427826,1738569036308,-460.9798855,0.000165,2]
[351427827,1738569036320,-215.2923755,0.000165,2]
[351427828,1738569036330,-1279.59146291,0.0001653,2]
[351427829,1738569036339,-152.0,0.00016535,2]
[351427830,1738569036349,-354.3389743,0.00016548,2]
[351427831,1738569036359,-500.0,0.00016575,2]
[351427832,1738569036368,-500.0,0.00016575,2]
[351427833,1738569036377,-500.0,0.00016575,2]
[351427834,1738569036386,-500.0,0.00016575,2]
[351427835,1738569036399,-500.0,0.00016575,2]
[351427836,1738569036408,-500.0,0.00016575,2]
[351427837,1738569036418,-500.0,0.00016575,2]
[351427838,1738569036427,-500.0,0.00016575,2]
[351427839,1738569036437,-500.0,0.00016575,2]
[351427840,1738569036446,-157.4840206,0.00016575,2]
[351427841,1738569036456,-500.0,0.00016575,2]
[351427842,1738569036465,-500.0,0.00016575,2]
[351427843,1738569036474,-500.0,0.00016575,2]
[351427844,1738569036484,-500.0,0.00016575,2]
[351427845,1738569036493,-500.0,0.00016575,2]
[351427846,1738569036503,-284.09751082,0.00016575,2]
[351427847,1738569036513,-500.0,0.00016575,2]
[351427848,1738569036522,-500.0,0.00016575,2]
[351427849,1738569036532,-351.61527937,0.00016575,2]
[351427850,1738569036541,-500.0,0.00016575,2]
[351427851,1738569036550,-500.0,0.00016575,2]
[351427852,1738569036562,-500.0,0.00016575,2]
[351427853,1738569036571,-544.65,0.00016575,2]
[351427854,1738569036580,-500.0,0.00016575,2]
[351427855,1738569036590,-610.0,0.00016575,2]
[351427856,1738569036599,-500.0,0.00016575,2]
[351427857,1738569036608,-590.92,0.00016575,2]
[351427858,1738569036618,-500.0,0.00016575,2]
[351427859,1738569036627,-500.0,0.00016575,2]
[351427860,1738569036636,-500.0,0.00016575,2]
[351427861,1738569036645,-500.0,0.00016575,2]
[351427862,1738569036655,-500.0,0.00016575,2]
[351427863,1738569036664,-1094.05,0.00016575,2]
[351427864,1738569036674,-500.0,0.00016575,2]
[351427865,1738569036683,-500.0,0.00016575,2]
[351427866,1738569036692,-500.0,0.00016575,2]
[351427867,1738569036702,-500.0,0.00016575,2]
[351427868,1738569036711,-500.0,0.00016575,2]
[351427869,1738569036720,-500.0,0.00016575,2]
[351427870,1738569036729,-500.0,0.00016575,2]
[351427871,1738569036738,-500.0,0.00016575,2]
[351427872,1738569036748,-668.22,0.00016575,2]
[351427873,1738569036758,-500.0,0.00016575,2]
[351427874,1738569036768,-500.0,0.00016575,2]
[351427875,1738569036784,-28137.66,0.00016575,2]
[351427876,1738569036793,-500.0,0.00016575,2]
[351427877,1738569036802,-1006.67,0.00016575,2]
[351427878,1738569036814,-678.75,0.00016575,2]
[351427879,1738569036824,-1781.93,0.00016575,2]
[351427880,1738569036833,-500.0,0.00016575,2]
[351427881,1738569036842,-588.73,0.00016575,2]
[351427882,1738569036851,-6374.87,0.00016575,2]
[351427883,1738569036861,-500.0,0.00016575,2]
[351427884,1738569036870,-500.0,0.00016575,2]
[351427885,1738569036879,-500.0,0.00016575,2]
[351427886,1738569036888,-500.0,0.00016575,2]
[351427887,1738569036898,-500.0,0.00016575,2]
[351427888,1738569036908,-750.4,0.00016575,2]
[351427889,1738569036917,-1806.56,0.00016575,2]
[351427890,1738569036927,-1452.39,0.00016575,2]
[351427891,1738569036936,-201.35678476,0.00016575,2]
[351427892,1738569036946,-500.0,0.00016575,2]
[351427893,1738569036956,-500.0,0.00016575,2]
[351427894,1738569036966,-660.47,0.00016575,2]
[351427895,1738569036975,-555.86,0.00016575,2]
[351427896,1738569036985,-500.0,0.00016575,2]
[351427897,1738569036995,-691.33,0.00016575,2]
[351427898,1738569037004,-500.0,0.00016575,2]
[351427899,1738569037013,-500.0,0.00016575,2]
[351427900,1738569037023,-500.0,0.00016575,2]
[351427901,1738569037032,-502.58,0.00016575,2]
[351427902,1738569037041,-500.0,0.00016575,2]
[351427903,1738569037050,-206.36639231,0.00016575,2]
[351427904,1738569037062,-287.62355205,0.00016575,2]
[351427905,1738569037071,-500.0,0.00016575,2]
[351427906,1738569037080,-500.0,0.00016575,2]
[351427907,1738569037089,-500.0,0.00016575,2]
[351427908,1738569037099,-500.0,0.00016575,2]
[351427909,1738569037108,-500.0,0.00016575,2]
[351427910,1738569037118,-500.0,0.00016575,2]
[351427911,1738569037127,-500.0,0.00016575,2]
[351427912,1738569037136,-500.0,0.00016575,2]
[351427913,1738569037146,-500.0,0.00016575,2]
[351427914,1738569037155,-563.42,0.00016575,2]
[351427915,1738569037165,-500.0,0.00016575,2]
[351427916,1738569037174,-500.0,0.00016575,2]
[351427917,1738569037183,-500.0,0.00016575,2]
[351427918,1738569037192,-1306.38,0.00016575,2]
[351427919,1738569037201,-1078.75,0.00016575,2]
[351427920,1738569037210,-500.0,0.00016575,2]
[351427921,1738569037219,-500.0,0.00016575,2]
[351427922,1738569037229,-2929.25,0.00016575,2]
[351427923,1738569037238,-500.0,0.00016575,2]
[351427924,1738569037248,-588.98,0.00016575,2]
[351427925,1738569037258,-561.13,0.00016575,2]
[351427926,1738569037267,-500.0,0.00016575,2]
[351427927,1738569037276,-500.0,0.00016575,2]
[351427928,1738569037287,-500.0,0.00016575,2]
[351427929,1738569037298,-500.0,0.00016575,2]
[351427930,1738569037312,-504.10460073,0.00016575,2]
[351427931,1738569037322,-1368.9,0.00016575,2]
[351427932,1738569037331,-500.0,0.00016575,2]
[351427933,1738569037342,-543.21616085,0.00016575,2]
[351427934,1738569037351,-313.83831908,0.00016575,2]
[351427935,1738569037360,-500.0,0.00016575,2]
[351427936,1738569037369,-4326.37,0.00016575,2]
[351427937,1738569037380,-500.0,0.00016575,2]
[351427938,1738569037389,-500.0,0.00016575,2]
[351427939,1738569037398,-500.0,0.00016575,2]
[351427940,1738569037408,-788.3,0.00016575,2]
[351427941,1738569037417,-151.11971487,0.00016593,2]
[351427942,1738569037427,-151.0,0.000166,2]
[351427943,1738569037437,-151.0,0.000166,2]
[351427944,1738569037446,-167.666,0.0001663,2]
[351427945,1738569037456,-215.6590378,0.00016685,2]
[351427946,1738569037466,-500.0,0.00016712,2]
[351427947,1738569037475,-500.0,0.00016712,2]
[351427948,1738569037485,-500.0,0.00016712,2]
[351427949,1738569037495,-500.0,0.00016712,2]
[351427950,1738569037504,-500.0,0.00016712,2]
[351427951,1738569037514,-500.0,0.00016712,2]
[351427952,1738569037523,-500.0,0.00016712,2]
[351427953,1738569037533,-500.0,0.00016712,2]
[351427954,1738569037543,-500.0,0.00016712,2]
[351427955,1738569037552,-500.0,0.00016712,2]
[351427956,1738569037567,-500.0,0.00016712,2]
[351427957,1738569037577,-500.0,0.00016712,2]
[351427958,1738569037587,-500.0,0.00016712,2]
[351427959,1738569037597,-500.0,0.00016712,2]
[351427960,1738569037607,-544.65,0.00016712,2]
[351427961,1738569037617,-500.0,0.00016712,2]
[351427962,1738569037627,-610.0,0.00016712,2]
[351427963,1738569037637,-500.0,0.00016712,2]
[351427964,1738569037647,-590.92,0.00016712,2]
[351427965,1738569037656,-500.0,0.00016712,2]
[351427966,1738569037666,-500.0,0.00016712,2]
[351427967,1738569037676,-500.0,0.00016712,2]
[351427968,1738569037685,-556.09791754,0.00016712,2]
[351427969,1738569037695,-500.0,0.00016712,2]
[351427970,1738569037704,-1094.05,0.00016712,2]
[351427971,1738569037714,-500.0,0.00016712,2]
[351427972,1738569037723,-500.0,0.00016712,2]
[351427973,1738569037732,-500.0,0.00016712,2]
[351427974,1738569037743,-500.0,0.00016712,2]
[351427975,1738569037752,-500.0,0.00016712,2]
[351427976,1738569037761,-500.0,0.00016712,2]
[351427977,1738569037772,-500.0,0.00016712,2]
[351427978,1738569037781,-500.0,0.00016712,2]
[351427979,1738569037791,-668.22,0.00016712,2]
[351427980,1738569037800,-500.0,0.00016712,2]
[351427981,1738569037814,-500.0,0.00016712,2]
[351427982,1738569037823,-28137.66,0.00016712,2]
[351427983,1738569037833,-500.0,0.00016712,2]
[351427984,1738569037843,-1006.67,0.00016712,2]
[351427985,1738569037852,-678.75,0.00016712,2]
[351427986,1738569037861,-1781.93,0.00016712,2]
[351427987,1738569037871,-500.0,0.00016712,2]
[351427988,1738569037880,-588.73,0.00016712,2]
[351427989,1738569037890,-6374.87,0.00016712,2]
[351427990,1738569037900,-500.0,0.00016712,2]
[351427991,1738569037909,-500.0,0.00016712,2]
[351427992,1738569037918,-500.0,0.00016712,2]
[351427993,1738569037928,-500.0,0.00016712,2]
[351427994,1738569037937,-750.4,0.00016712,2]
[351427995,1738569037946,-1806.56,0.00016712,2]
[351427996,1738569037955,-1452.39,0.00016712,2]
[351427997,1738569037965,-500.0,0.00016712,2]
[351427998,1738569037974,-381.18265265,0.00016712,2]
[351427999,1738569037983,-660.47,0.00016712,2]
[351428000,1738569037992,-555.86,0.00016712,2]
[351428001,1738569038002,-691.33,0.00016712,2]
[351428002,1738569038011,-500.0,0.00016712,2]
[351428003,1738569038020,-500.0,0.00016712,2]
[351428004,1738569038029,-500.0,0.00016712,2]
[351428005,1738569038038,-500.0,0.00016712,2]
[351428006,1738569038049,-500.0,0.00016712,2]
[351428007,1738569038062,-500.0,0.00016712,2]
[351428008,1738569038071,-500.0,0.00016712,2]
[351428009,1738569038080,-563.42,0.00016712,2]
[351428010,1738569038089,-500.0,0.00016712,2]
[351428011,1738569038099,-500.0,0.00016712,2]
[351428012,1738569038109,-1306.38,0.00016712,2]
[351428013,1738569038118,-1078.75,0.00016712,2]
[351428014,1738569038128,-2929.25,0.00016712,2]
[351428015,1738569038138,-500.0,0.00016712,2]
[351428016,1738569038147,-588.98,0.00016712,2]
[351428017,1738569038156,-561.13,0.00016712,2]
[351428018,1738569038167,-500.0,0.00016712,2]
[351428019,1738569038176,-500.0,0.00016712,2]
[351428020,1738569038186,-500.0,0.00016712,2]
[351428021,1738569038195,-500.0,0.00016712,2]
[351428022,1738569038205,-1368.9,0.00016712,2]
[351428023,1738569038214,-500.0,0.00016712,2]
[351428024,1738569038223,-500.0,0.00016712,2]
[351428025,1738569038232,-4326.37,0.00016712,2]
[351428026,1738569038242,-500.0,0.00016712,2]
[351428027,1738569038251,-500.0,0.00016712,2]
[351428028,1738569038260,-788.3,0.00016712,2]
[351428029,1738569038269,-4768.71015143,0.00016749,7]
[351428030,1738569038279,-151.0,0.000168,2]
[351428031,1738569038288,-151.0,0.000168,2]
[351428032,1738569038298,-357.47690324,0.00016832,2]
[351428033,1738569038308,-1279.59146291,0.00016845,2]
[351428034,1738569038321,-605.82604633,0.00016848,2]
[351428035,1738569038331,-171.23077196,0.00016848,2]
[351428036,1738569038340,-500.0,0.00016849,2]
[351428037,1738569038350,-500.0,0.00016849,2]
[351428039,1738569038361,-500.0,0.00016849,2]
[351428042,1738569038370,-500.0,0.00016849,2]
[351428044,1738569038379,-500.0,0.00016849,2]
[351428046,1738569038394,-500.0,0.00016849,2]
[351428048,1738569038404,-156.15143459,0.00016849,2]
[351428049,1738569038414,-500.0,0.00016849,2]
[351428050,1738569038424,-500.0,0.00016849,2]
[351428051,1738569038433,-500.0,0.00016849,2]
[351428052,1738569038442,-500.0,0.00016849,2]
[351428053,1738569038451,-500.0,0.00016849,2]
[351428054,1738569038461,-500.0,0.00016849,2]
[351428055,1738569038470,-362.05227745,0.00016849,2]
[351428057,1738569038479,-544.65,0.00016849,2]
[351428059,1738569038489,-500.0,0.00016849,2]
[351428060,1738569038499,-610.0,0.00016849,2]